bitfinex/quotes_SOLUSD_20250920
["timestamp","ask_amount","ask_price","bid_price","bid_amount"]
[1758350393054,4.17535248,239.55,239.54,32.53]
[1758350393250,34.01298919,239.58,239.54,36.70466811]
[1758350393447,2.81298919,239.57,239.55,0.69]
[1758350393645,32.45047609,239.58,239.56,31.84]
[1758350393848,34.01301754,239.57,239.56,31.84]
[1758350399065,34.01295437,239.57,239.56,31.84]
[1758350401089,46.56341769,239.57,239.55,0.69]
[1758350401252,43.75046332,239.57,239.56,31.84]
[1758350401451,46.56364825,239.57,239.56,31.84]
[1758350401678,34.01318493,239.57,239.56,31.84]
[1758350402491,46.56364825,239.57,239.56,31.84]
[1758350402779,47.22364825,239.57,239.56,31.82]
[1758350403071,46.56364825,239.57,239.56,31.82]
[1758350404583,34.01318493,239.57,239.56,31.82]
[1758350404876,46.56364825,239.57,239.56,31.82]
[1758350406284,46.56364825,239.57,239.54,0.7]
[1758350406487,2.81318493,239.56,239.55,32.52]
[1758350406665,2.81318493,239.56,239.5,19.02128459]
[1758350406872,2.81392361,239.55,239.51,32.52]
[1758350407180,0.66,239.55,239.51,32.52]
[1758350407385,0.66,239.55,239.52,0.7]
[1758350409380,0.66,239.55,239.53,31.82]
[1758350410787,18.63634372,239.56,239.53,31.82]
[1758350410992,2.81453924,239.55,239.53,31.82]
[1758350411289,18.63634372,239.56,239.53,31.82]
[1758350411598,2.81460909,239.55,239.54,0.7]
[1758350411772,2.81460909,239.55,239.54,32.52]
[1758350413099,2.81460909,239.55,239.54,31.82]
[1758350413792,17.97634371,239.56,239.54,31.82]
[1758350414102,16.72586762,239.56,239.54,31.82]
[1758350414281,12.5515135,239.56,239.54,31.82]
[1758350414483,2.8146371,239.55,239.54,32.52]
[1758350415194,2.81455448,239.56,239.54,32.52]
[1758350415390,43.75151351,239.57,239.54,32.52]
[1758350415591,2.8146239,239.56,239.54,32.52]
[1758350415774,43.75151351,239.57,239.54,32.52]
[1758350415974,2.8146239,239.56,239.54,32.52]
[1758350416276,43.75151351,239.57,239.54,32.52]
[1758350416476,2.81462692,239.56,239.54,32.52]
[1758350416696,31.2,239.57,239.54,32.52]
[1758350416989,2.81455107,239.56,239.54,32.52]
[1758350417176,43.75151351,239.57,239.54,32.52]
[1758350417377,2.81458118,239.56,239.54,32.52]
[1758350417577,43.75151351,239.57,239.54,32.52]
[1758350417783,2.81467251,239.56,239.54,32.52]
[1758350417985,43.75151351,239.57,239.54,32.52]
[1758350418184,2.81467413,239.56,239.54,32.52]
[1758350418398,43.75151351,239.57,239.54,32.52]
[1758350418591,2.81476992,239.56,239.54,32.52]
[1758350418792,43.75151351,239.57,239.54,32.52]
[1758350418995,2.81476992,239.56,239.54,32.52]
[1758350419185,43.75151351,239.57,239.54,31.82]
[1758350419498,2.81476282,239.56,239.55,0.7]
[1758350422697,2.81476282,239.56,239.54,31.82]
[1758350422879,0.66,239.56,239.55,31.8]
[1758350423079,2.81479407,239.56,239.55,32.5]
[1758350423785,2.81479407,239.56,239.55,31.8]
[1758350424307,2.81479407,239.56,239.55,32.5]
[1758350425003,2.81479407,239.56,239.55,36.67449384]
[1758350425189,31.2,239.6,239.55,36.67449384]
[1758350425387,34.01514306,239.59,239.56,0.7]
[1758350425591,2.81514306,239.58,239.57,32.5]
[1758350425981,2.81514306,239.58,239.57,31.8]
[1758350433800,2.81514306,239.58,239.57,32.46]
[1758350434727,2.81514306,239.58,239.57,31.8]
[1758350441222,2.81514306,239.58,239.57,32.46]
[1758350441420,34.01514306,239.58,239.57,32.46]
[1758350441601,34.01514306,239.58,239.57,31.8]
[1758350442325,46.56508135,239.58,239.57,31.8]
[1758350443819,15.36508135,239.58,239.57,31.8]
[1758350444017,15.36508135,239.58,239.57,32.46]
[1758350444211,12.54993829,239.58,239.57,32.46]
[1758350444831,12.54993829,239.58,239.57,31.8]
[1758350447435,15.36303394,239.58,239.57,31.8]
[1758350452627,15.36303394,239.58,239.57,31.78]
[1758350453640,15.36303394,239.58,239.56,0.66]
[1758350453816,33.80375729,239.6,239.57,31.78]
[1758350454016,15.36291341,239.59,239.57,31.78]
[1758350454225,2.81297511,239.58,239.57,31.78]
[1758350455445,2.81297511,239.58,239.57,32.44]
[1758350458342,2.81386304,239.58,239.57,32.44]
[1758350459645,2.81386304,239.58,239.57,36.61414534]
[1758350463345,31.2,239.6,239.57,36.61414534]
[1758350463538,2.81387763,239.59,239.58,0.68]
[1758350463742,2.81387763,239.59,239.58,32.46]
[1758350464341,2.81387763,239.59,239.58,36.63397111]
[1758350464651,2.81387763,239.59,239.58,35.95397111]
[1758350468342,2.81387763,239.59,239.57,0.68]
[1758350468549,3.48387763,239.58,239.56,13.59559401]
[1758350468849,2.81387763,239.57,239.56,0.68]
[1758350469543,2.81387763,239.57,239.56,32.44]
[1758350473343,2.81387763,239.57,239.56,36.61431958]
[1758350476057,2.81387763,239.57,239.56,31.76]
[1758350477852,2.81387763,239.57,239.56,32.44]
[1758350480734,2.81387763,239.57,239.56,31.76]
[1758350480940,3.48387763,239.57,239.56,31.76]
[1758350481651,2.81387763,239.57,239.56,31.76]
[1758350483758,2.81387763,239.57,239.55,0.68]
[1758350483964,14.46985713,239.59,239.56,31.76]
[1758350484165,2.81439562,239.58,239.56,31.76]
[1758350484466,2.81439562,239.57,239.56,31.76]
[1758350486667,2.81439562,239.57,239.56,32.47]
[1758350486862,2.81439562,239.57,239.56,31.76]
[1758350498074,2.81439562,239.57,239.55,0.71]
[1758350498251,18.68365811,239.59,239.56,31.76]
[1758350498456,3.52438517,239.58,239.56,31.76]
[1758350498758,2.81438517,239.57,239.56,31.76]
[1758350502097,8.94901937,239.57,239.52,13.59559401]
[1758350502274,4.77482898,239.56,239.53,31.76]
[1758350502463,3.52393781,239.55,239.53,31.76]
[1758350502779,0.71,239.55,239.53,31.76]
[1758350502984,13.26098839,239.55,239.53,31.76]
[1758350505384,12.55098839,239.55,239.53,31.76]
[1758350507799,12.55098839,239.55,239.52,13.59559401]
[1758350507980,12.55098839,239.55,239.53,31.76]
[1758350508293,12.55098839,239.55,239.54,31.76]
[1758350508496,15.36362924,239.55,239.54,31.76]
[1758350515681,20.21812308,239.55,239.49,4.17551598]
[1758350515998,2.81181327,239.54,239.5,32.43]
[1758350516169,5.42493765,239.55,239.51,0.67]
[1758350516373,15.36363819,239.54,239.52,31.76]
[1758350516586,12.55203866,239.54,239.52,32.43]
[1758350516785,5.42493765,239.55,239.52,32.43]
[1758350516980,2.8116004,239.54,239.52,32.43]
[1758350517186,5.42493765,239.55,239.52,32.43]
[1758350517378,2.81139222,239.54,239.52,32.43]
[1758350517581,12.55203866,239.54,239.52,32.43]
[1758350519493,12.55203866,239.54,239.53,0.67]
[1758350523012,12.55203866,239.54,239.52,31.76]
[1758350523902,12.55203866,239.54,239.53,0.7]
[1758350524910,31.89,239.58,239.53,0.7]
[1758350525209,2.81138633,239.57,239.54,32.46]
[1758350525403,2.81138633,239.56,239.55,0.7]
[1758350525706,15.36237472,239.56,239.55,0.7]
[1758350527006,15.36237472,239.56,239.54,31.76]
[1758350527193,2.81138633,239.55,239.54,32.46]
[1758350527582,15.36237472,239.55,239.54,32.46]
[1758350531494,12.55098839,239.55,239.54,32.46]
[1758350532906,12.55098839,239.55,239.54,31.76]
[1758350533916,12.55098839,239.55,239.53,4.87481651]
[1758350534091,12.55098839,239.55,239.54,31.76]
[1758350534289,15.36349032,239.55,239.54,31.76]
[1758350539914,16.05349032,239.55,239.51,17.77078502]
[1758350540141,12.55098839,239.55,239.52,31.76]
[1758350540298,1.94044381,239.56,239.52,32.46]
[1758350540619,15.36463909,239.55,239.52,31.76]
[1758350540816,12.55098839,239.55,239.53,0.7]
[1758350541014,12.55098839,239.55,239.54,31.76]
[1758350541210,15.36463996,239.55,239.54,31.76]
[1758350543296,15.36463996,239.55,239.53,0.7]
[1758350543497,12.55098839,239.55,239.54,31.76]
[1758350543698,2.81417169,239.55,239.54,31.76]
[1758350545407,15.36516008,239.55,239.54,31.76]
[1758350546614,15.36516008,239.55,239.54,32.46]
[1758350549723,15.36516008,239.55,239.54,31.76]
[1758350549927,18.0093307,239.55,239.54,31.76]
[1758350554208,17.3193307,239.55,239.54,31.76]
[1758350555143,15.36516008,239.55,239.54,31.76]
[1758350570041,15.36516008,239.55,239.53,0.7]
[1758350570215,2.81417169,239.54,239.53,0.7]
[1758350570418,2.81417169,239.54,239.53,32.46]
[1758350570838,15.36516008,239.54,239.53,32.46]
[1758350573235,15.36516008,239.54,239.53,0.7]
[1758350573436,15.36516008,239.54,239.53,32.46]
[1758350578245,15.36516008,239.54,239.53,31.76]
[1758350578448,16.08516008,239.54,239.53,31.76]
[1758350578747,15.36516008,239.54,239.53,31.76]
[1758350582444,15.36516008,239.54,239.53,32.47]
[1758350586253,15.36516008,239.54,239.53,31.76]
[1758350587956,15.36516008,239.54,239.53,32.47]
[1758350589147,15.36516008,239.54,239.53,31.76]
[1758350595362,15.36516008,239.54,239.52,0.71]
[1758350595547,12.55098839,239.54,239.53,31.76]
[1758350595739,2.81531328,239.54,239.53,31.76]
[1758350598065,15.36630167,239.54,239.53,31.76]
[1758350617881,15.36630167,239.54,239.53,32.42]
[1758350622486,15.36630167,239.54,239.53,31.76]
[1758350622863,15.36630167,239.54,239.53,51.4411604]
[1758350623174,12.55098839,239.54,239.53,51.4411604]
[1758350623574,31.2,239.58,239.53,51.4411604]
[1758350623868,15.36537363,239.57,239.54,0.66]
[1758350624061,2.81491031,239.56,239.55,31.74]
[1758350624260,2.81491031,239.56,239.55,32.4]
[1758350624671,15.36537363,239.56,239.55,32.4]
[1758350625657,15.36537363,239.56,239.55,31.74]
[1758350626084,15.36537363,239.56,239.55,32.4]
[1758350627058,15.36537363,239.56,239.55,36.57449384]
[1758350628290,12.55046332,239.56,239.55,36.57449384]
[1758350630798,15.36342749,239.56,239.55,36.57449384]
[1758350632188,12.55046332,239.56,239.55,36.57449384]
[1758350646406,12.55046332,239.56,239.55,35.91449384]
[1758350649212,12.55046332,239.56,239.55,36.60449384]
[1758350649710,12.55046332,239.56,239.55,35.91449384]
[1758350651318,12.55046332,239.56,239.54,13.59559401]
[1758350651486,12.55046332,239.56,239.55,31.74]
[1758350664118,15.36341583,239.56,239.55,31.74]
[1758350672839,15.36341583,239.56,239.55,36.57449384]
[1758350673334,12.55046332,239.56,239.55,36.57449384]
[1758350678454,12.55046332,239.56,239.55,50.17008785]
[1758350683939,12.55046332,239.56,239.55,18.43008785]
[1758350684255,12.55046332,239.56,239.55,50.15008785]
[1758350684750,0.7,239.59,239.55,50.15008785]
[1758350684920,15.36278195,239.58,239.55,50.15008785]
[1758350685120,12.54941331,239.58,239.55,50.15008785]
[1758350685342,0.7,239.59,239.55,50.15008785]
[1758350685542,2.8133733,239.58,239.55,50.15008785]
[1758350685744,0.7,239.59,239.55,50.15008785]
[1758350685945,2.8133733,239.58,239.55,50.15008785]
[1758350686148,12.54941331,239.58,239.55,50.15008785]
[1758350686349,12.54941331,239.58,239.56,35.89424577]
[1758350701165,12.54941331,239.58,239.56,31.72]
[1758350701645,12.54941331,239.58,239.56,32.38]
[1758350702037,12.54941331,239.58,239.57,31.72]
[1758350702242,15.36367646,239.58,239.57,31.72]
[1758350732082,2.81426315,239.58,239.57,51.68439781]
[1758350732298,15.36516148,239.63,239.58,13.59559401]
[1758350732479,2.81837242,239.62,239.6,13.59559401]
[1758350732666,12.54678906,239.63,239.61,31.72]
[1758350732987,2.81669962,239.62,239.61,32.38]
[1758350733487,12.54678906,239.63,239.61,32.38]
[1758350742594,31.2,239.63,239.61,32.38]
[1758350760708,31.2,239.63,239.6,17.76919773]
[1758350760910,31.2,239.63,239.61,31.7]
[1758350761116,0.66,239.62,239.61,31.7]
[1758350761811,31.86,239.63,239.61,31.7]
[1758350763516,36.03320922,239.63,239.59,0.69]
[1758350763819,4.72354248,239.62,239.6,31.7]
[1758350764125,0.66,239.61,239.6,31.7]
[1758350764291,3.47320716,239.61,239.6,31.7]
[1758350764502,2.81320716,239.61,239.6,31.7]
[1758350767030,14.45817396,239.62,239.58,14.28559401]
[1758350767205,14.45817396,239.62,239.59,31.7]
[1758350768224,2.81379048,239.61,239.59,31.7]
[1758350771216,2.81379048,239.61,239.59,32.39]
[1758350773030,2.81379048,239.61,239.59,31.7]
[1758350774931,1.91033532,239.6,239.55,62.99]
[1758350775227,0.66,239.59,239.56,45.29559401]
[1758350775812,1.25033532,239.6,239.56,45.29559401]
[1758350776123,15.36431129,239.59,239.56,14.28559401]
[1758350776319,12.54888838,239.59,239.57,31.7]
[1758350776512,13.20888838,239.59,239.57,31.7]
[1758350776715,12.54888838,239.59,239.57,31.7]
[1758350777407,12.54888838,239.59,239.57,32.39]
[1758350780533,12.54888838,239.59,239.57,31.7]
[1758350780740,12.54888838,239.59,239.57,32.39]
[1758350788851,5.42406687,239.6,239.57,32.39]
[1758350789021,8.23882094,239.6,239.57,32.39]
[1758350789221,20.78770932,239.6,239.57,32.39]
[1758350789427,17.97295525,239.6,239.57,32.39]
[1758350789741,18.67629272,239.6,239.57,32.39]
[1758350792243,2.81476891,239.59,239.57,32.39]
[1758350792743,18.67629272,239.6,239.57,32.39]
[1758350793243,2.81460181,239.59,239.57,32.39]
[1758350793742,1.95367279,239.58,239.54,0.67]
[1758350793962,1.95367279,239.58,239.55,31.7]
[1758350794123,0.7,239.57,239.55,31.7]
[1758350794323,1.95367279,239.58,239.55,31.7]
[1758350794532,1.95367279,239.58,239.55,32.37]
[1758350794832,4.7682746,239.57,239.55,32.37]
[1758350796522,4.7682746,239.57,239.56,0.67]
[1758350797021,7.5826138,239.57,239.56,0.67]
[1758350799230,8.2826138,239.57,239.56,31.7]
[1758350799730,7.5826138,239.57,239.56,31.7]
[1758350803055,8.2826138,239.57,239.56,31.7]
[1758350803352,7.5826138,239.57,239.56,31.7]
[1758350805344,7.5826138,239.57,239.55,0.67]
[1758350805649,7.5826138,239.57,239.56,31.7]
[1758350810139,4.17370224,239.6,239.56,32.37]
[1758350810340,34.01644136,239.59,239.57,0.67]
[1758350810530,10.39905516,239.58,239.57,0.67]
[1758350810852,10.39905516,239.58,239.56,31.7]
[1758350811233,10.39905516,239.58,239.57,0.67]
[1758350820138,2.81644136,239.58,239.57,0.67]
[1758350820339,2.81644136,239.58,239.57,4.84414534]
[1758350821643,3.46644136,239.58,239.57,35.87414534]
[1758350821848,2.81644136,239.58,239.57,35.87414534]
[1758350822046,2.81644136,239.58,239.57,36.56414534]
[1758350822670,2.81644136,239.59,239.57,36.56414534]
[1758350822965,2.81644136,239.58,239.57,36.56414534]
[1758350823164,2.81644136,239.59,239.57,36.56414534]
[1758350823367,2.81644136,239.58,239.57,36.56414534]
[1758350823569,2.81644136,239.59,239.57,36.56414534]
[1758350823746,2.81644136,239.58,239.57,36.56414534]
[1758350823946,2.81644136,239.59,239.57,36.56414534]
[1758350824159,2.81644136,239.58,239.57,36.56414534]
[1758350824369,2.81644136,239.59,239.57,36.56414534]
[1758350824569,2.81644136,239.58,239.57,36.56414534]
[1758350824761,2.81644136,239.59,239.57,36.56414534]
[1758350824961,2.81644136,239.58,239.57,36.56414534]
[1758350825163,2.81644136,239.59,239.57,36.56414534]
[1758350825373,2.81644136,239.58,239.57,36.56414534]
[1758350825669,2.81644136,239.59,239.57,36.56414534]
[1758350825873,2.81644136,239.58,239.57,36.56414534]
[1758350826074,2.81644136,239.59,239.57,36.56414534]
[1758350826375,2.81644136,239.58,239.57,35.87414534]
[1758350826573,2.81644136,239.59,239.57,35.87414534]
[1758350826765,2.81644136,239.58,239.57,36.56414534]
[1758350830777,2.81644136,239.58,239.57,32.39]
[1758350831286,2.81644136,239.58,239.57,31.7]
[1758350831969,5.42011415,239.58,239.55,2.18094775]
[1758350832172,3.46644136,239.57,239.56,31.7]
[1758350837474,2.81644136,239.57,239.56,31.7]
[1758350839671,2.81644136,239.57,239.56,32.39]
[1758350841665,2.81644136,239.57,239.56,50.15991359]
[1758350841878,2.81644136,239.59,239.57,13.59559401]
[1758350842079,12.54836348,239.62,239.58,34.34367279]
[1758350842280,2.81758455,239.61,239.59,0.69]
[1758350842588,12.54836348,239.62,239.6,32.39]
[1758350842771,12.54836348,239.62,239.61,31.7]
[1758350842972,15.36560175,239.62,239.61,31.7]
[1758350843167,15.36560175,239.62,239.61,32.39]
[1758350844473,15.36560175,239.62,239.61,45.98559401]
[1758350844779,2.81723827,239.62,239.61,47.9392668]
[1758350844985,46.56350262,239.66,239.61,47.9392668]
[1758350845282,2.81723827,239.65,239.62,2.64367279]
[1758350845479,2.81723827,239.64,239.63,32.39]
[1758350847080,2.81723827,239.64,239.63,36.56310019]
[1758350847281,2.81723827,239.66,239.63,36.56310019]
[1758350847485,2.81723827,239.65,239.64,0.66]
[1758350848563,1.42091107,239.68,239.64,0.66]
[1758350848769,12.54626435,239.67,239.65,31.7]
[1758350849078,1.42091107,239.68,239.65,31.7]
[1758350849281,12.54626435,239.67,239.65,31.7]
[1758350850086,13.79576133,239.67,239.65,31.7]
[1758350854487,12.54626435,239.67,239.65,31.7]
[1758350856292,32.54949698,239.69,239.65,32.36]
[1758350856673,12.54573968,239.67,239.65,32.36]
[1758350857171,12.54573968,239.67,239.65,31.7]
[1758350857377,12.54573968,239.67,239.66,0.66]
[1758350857788,12.54573968,239.67,239.65,31.7]
[1758350857989,12.54573968,239.67,239.65,32.36]
[1758350858887,12.54573968,239.67,239.65,31.7]
[1758350859996,12.54573968,239.67,239.65,32.36]
[1758350860384,12.54573968,239.67,239.66,0.66]
[1758350860696,31.2,239.67,239.66,0.66]
[1758350862994,31.2,239.68,239.66,0.66]
[1758350863295,31.2,239.68,239.67,32.34]
[1758350863495,34.01035111,239.68,239.67,32.34]
[1758350866909,34.01035111,239.68,239.67,31.68]
[1758350868383,31.2,239.68,239.67,31.68]
[1758350870103,32.44949698,239.68,239.67,31.68]
[1758350871905,32.44949698,239.68,239.67,32.34]
[1758350872708,32.44949698,239.68,239.67,31.68]
[1758350873410,32.44949698,239.68,239.67,32.34]
[1758350874580,31.2,239.68,239.67,32.34]
[1758350874787,32.44949698,239.68,239.67,32.34]
[1758350876221,31.2,239.68,239.67,32.34]
[1758350876399,32.44949698,239.68,239.67,32.34]
[1758350877511,35.25908175,239.68,239.67,32.34]
[1758350878030,34.00958477,239.68,239.67,32.34]
[1758350881413,2.80958477,239.68,239.67,32.34]
[1758350881708,0.1,239.69,239.67,36.51240372]
[1758350881909,0.1,239.69,239.68,0.66]
[1758350884109,0.1,239.69,239.68,32.36]
[1758350884515,0.1,239.69,239.68,36.53222963]
[1758350885230,0.1,239.69,239.68,4.83222963]
[1758350885399,0.1,239.69,239.68,36.53222963]
[1758350892117,0.1,239.69,239.68,4.83222963]
[1758350892325,0.1,239.69,239.68,36.53222963]
[1758350892818,0.1,239.69,239.68,4.83222963]
[1758350893019,0.1,239.69,239.68,50.12782364]
[1758350893223,0.1,239.69,239.68,51.37732062]
[1758350903232,0.1,239.69,239.68,45.95559401]
[1758350903626,0.1,239.69,239.66,62.3]
[1758350904017,0.72,239.69,239.67,31.7]
[1758350904426,0.72,239.69,239.68,31.7]
[1758350905339,0.1,239.69,239.68,31.7]
[1758350919227,0.1,239.69,239.68,32.39]
[1758350923742,0.1,239.69,239.68,36.56222963]
[1758350972969,0.1,239.69,239.68,35.87222963]
[1758350973176,0.1,239.69,239.68,36.58222963]
[1758350974377,0.1,239.69,239.68,50.17782364]
[1758350974968,0.1,239.69,239.68,51.42676878]
[1758350981978,0.1,239.69,239.68,51.71109192]
[1758350982184,0.1,239.69,239.68,54.52944493]
[1758350985374,0.1,239.69,239.68,116.82944493]
[1758350993393,0.1,239.69,239.68,75.89559401]
[1758350993701,0.1,239.69,239.68,107.57559401]
[1758350995318,0.1,239.69,239.68,111.74782364]
[1758351001387,0.1,239.69,239.68,113.68676878]
[1758351009109,0.1,239.69,239.68,112.43782364]
[1758351018233,0.1,239.69,239.68,114.73002949]
[1758351025754,0.1,239.69,239.68,115.01435263]
[1758351025948,0.1,239.69,239.68,116.26329777]
[1758351031856,0.1,239.69,239.68,116.96505634]
[1758351032063,0.1,239.69,239.68,82.64435263]
[1758351032268,0.1,239.69,239.68,114.32435263]
[1758351034747,0.1,239.69,239.68,115.03435263]
[1758351034953,0.1,239.69,239.68,116.98505634]
[1758351044163,0.1,239.69,239.68,117.02505634]
[1758351047755,0.1,239.7,239.69,13.87991715]
[1758351048056,0.1,239.7,239.69,16.54062086]
[1758351048262,1e-08,239.7,239.69,16.54062086]
[1758351048563,1e-08,239.7,239.69,18.21247725]
[1758351049465,1e-08,239.7,239.69,22.38453282]
[1758351050574,1e-08,239.7,239.69,84.68453282]
[1758351069559,1e-08,239.7,239.69,116.40453282]
[1758351071276,0.62,239.74,239.71,13.59559401]
[1758351071468,0.62,239.74,239.73,20.0019803]
[1758351071978,0.62,239.74,239.73,21.67362708]
[1758351075083,0.1,239.76,239.74,13.87991715]
[1758351075275,0.72,239.76,239.75,45.29559401]
[1758351075471,0.1,239.76,239.75,45.29559401]
[1758351076062,0.72,239.76,239.75,49.46660548]
[1758351077280,0.72,239.76,239.75,111.76660547]
[1758351077482,0.1,239.76,239.75,111.76660547]
[1758351079089,0.72,239.76,239.75,111.76660547]
[1758351079682,0.1,239.76,239.75,111.76660547]
[1758351079986,0.1,239.76,239.75,124.22831391]
[1758351083886,0.72,239.76,239.75,88.35730244]
[1758351084085,0.72,239.76,239.75,120.05730244]
[1758351085581,0.72,239.76,239.75,124.22831391]
[1758351086389,0.1,239.76,239.75,124.22831391]
[1758351089594,0.1,239.76,239.75,92.52831391]
[1758351089895,0.1,239.76,239.75,124.22831391]
[1758351094187,0.1,239.76,239.75,92.52831391]
[1758351094391,0.1,239.76,239.75,124.22831391]
[1758351096296,0.1,239.76,239.75,80.06660547]
[1758351096483,0.1,239.76,239.75,111.76660547]
[1758351101104,0.1,239.76,239.75,49.46660548]
[1758351111900,0.72,239.76,239.75,17.76660548]
[1758351112217,0.72,239.76,239.75,45.27559401]
[1758351112713,0.1,239.76,239.75,45.27559401]
[1758351116223,0.1,239.76,239.75,49.44660548]
[1758351123736,4.78328347,239.76,239.72,13.59559401]
[1758351123907,1.24819798,239.74,239.73,31.68]
[1758351124225,1.86819798,239.74,239.73,31.68]
[1758351124528,4.68328347,239.74,239.73,31.68]
[1758351124734,1.24819798,239.74,239.73,31.68]
[1758351125029,9.76778148,239.74,239.73,31.68]
[1758351126133,10.38778148,239.74,239.71,62.29999999]
[1758351126341,2.81508549,239.73,239.72,31.7]
[1758351126710,9.1395835,239.73,239.72,31.7]
[1758351126911,9.7595835,239.73,239.72,31.7]
[1758351127611,11.00778148,239.73,239.72,31.7]
[1758351128832,10.38778148,239.73,239.72,31.7]
[1758351129129,15.17914092,239.73,239.72,31.7]
[1758351129333,31.2,239.7,239.69,31.72]
[1758351129625,35.88328347,239.7,239.69,31.72]
[1758351130033,48.42849851,239.7,239.69,31.72]
[1758351130918,52.60038002,239.7,239.69,31.72]
[1758351131624,63.03008381,239.7,239.63,0.65]
[1758351131815,1.24819798,239.64,239.62,0.65]
[1758351132022,1.24819798,239.64,239.63,31.78]
[1758351132628,4.06328347,239.64,239.63,31.78]
[1758351133230,4.06328347,239.64,239.63,32.43]
[1758351133431,4.06328347,239.64,239.63,31.78]
[1758351135630,8.23620952,239.64,239.63,31.78]
[1758351136718,4.06328347,239.64,239.63,31.78]
[1758351138720,4.06328347,239.64,239.58,0.65]
[1758351138721,8.85620952,239.64,239.58,0.65]
[1758351138924,1.24819798,239.6,239.59,31.78]
[1758351139127,1.24819798,239.6,239.59,32.43]
[1758351139520,13.79708635,239.6,239.59,32.43]
[1758351144550,12.54888837,239.6,239.59,50.19939091]
[1758351144852,32.44819798,239.64,239.6,13.59559401]
[1758351145043,12.54678907,239.62,239.61,0.65]
[1758351146547,12.54678907,239.62,239.61,4.82344852]
[1758351146934,12.54678907,239.62,239.61,4.86344852]
[1758351149347,12.54678907,239.62,239.61,36.66344852]
[1758351163190,31.2,239.64,239.61,36.66344852]
[1758351163462,31.2,239.64,239.62,4.17321855]
[1758351163754,31.2,239.64,239.63,31.78]
[1758351163958,33.15274559,239.64,239.63,31.78]
[1758351167771,1.95274559,239.64,239.63,31.78]
[1758351168458,1.95274559,239.66,239.63,32.47]
[1758351168976,31.2,239.65,239.64,0.69]
[1758351169173,31.2,239.65,239.63,31.78]
[1758351169380,31.2,239.65,239.64,0.69]
[1758351170178,31.2,239.65,239.63,31.78]
[1758351170964,33.15274559,239.65,239.63,31.78]
[1758351172859,33.15274559,239.65,239.64,0.69]
[1758351173463,33.15274559,239.65,239.63,31.78]
[1758351174362,1.95274559,239.64,239.63,31.78]
[1758351175181,6.74567164,239.64,239.63,31.78]
[1758351175870,6.12567164,239.64,239.63,31.76]
[1758351178266,37.32567164,239.64,239.63,31.76]
[1758351182259,35.37292605,239.64,239.63,31.76]
[1758351182464,37.32567164,239.64,239.63,31.76]
[1758351184278,37.32567164,239.64,239.57,13.59559401]
[1758351184484,1.95274559,239.62,239.58,32.48]
[1758351184686,1.95274559,239.61,239.58,32.48]
[1758351185185,1.95274559,239.61,239.59,0.72]
[1758351185379,1.95274559,239.6,239.59,0.72]
[1758351188196,1.95274559,239.6,239.58,32.48]
[1758351188403,1.95274559,239.59,239.58,32.48]
[1758351188997,1.95274559,239.59,239.58,31.76]
[1758351192882,6.12654249,239.59,239.58,31.76]
[1758351198792,1.95274559,239.59,239.58,31.76]
[1758351198993,33.15274559,239.6,239.58,32.48]
[1758351199511,33.15274559,239.6,239.59,0.72]
[1758351203696,33.15274559,239.6,239.58,31.76]
[1758351203697,37.32636829,239.6,239.58,31.76]
[1758351203899,1.95274559,239.59,239.58,31.76]
[1758351204098,1.95274559,239.59,239.58,32.48]
[1758351210121,31.2,239.6,239.58,32.48]
[1758351210314,31.2,239.6,239.59,0.69]
[1758351214310,31.2,239.6,239.58,31.76]
[1758351214510,1.95274559,239.59,239.58,31.76]
[1758351214906,1.95274559,239.59,239.58,32.45]